[Event "ETCC Open 2023"]
[Site "Budva"]
[Date "2023.11.11"]
[Round "1.17"]
[White "Grandelius, Nils"]
[Black "Keymer, Vincent"]
[Result "1/2-1/2"]
[ECO "C88"]
[WhiteElo "2688"]
[BlackElo "2721"]
[Annotator "TA"]
[PlyCount "60"]
[EventDate "2023.11.10"]
[EventType "team-tourn"]
[EventCountry "MNE"]
[SourceTitle "playchess.com"]
[Source "ChessBase"]
[SourceQuality "1"]
[WhiteTeam "Sweden"]
[BlackTeam "Germany"]
[WhiteTeamCountry "SWE"]
[BlackTeamCountry "GER"]
[TimeControl "40/5400+30:1800+30"]

{[%evp 19,60,33,28,11,16,15,12,4,4,0,0,0,0,0,0,0,0,0,0,0,0,0,0,0,0,0,0,0,0,0,0,0,0,0,0,0,0,0,0,0,0,0,0]} 1. e4 {[%emt 0:00:09]} e5 {[%emt 0:00:07]} 2. Nf3 {[%emt 0:00:13]} Nc6 {[%emt 0:00:04]} 3. Bb5 {[%emt 0:00:21][%cal Bf1b5,Bb5a4,Ba4b3][%mdl 32]} a6 {[%emt 0:00:05]} 4. Ba4 {[%emt 0:00:07]} Nf6 {[%emt 0:00:05]} 5. O-O {[%emt 0:01:07]} Be7 {[%emt 0:00:07]} 6. Re1 {[%emt 0:01:29]} b5 {[%emt 0:00:06]} 7. Bb3 {[%emt 0:00:06]} O-O {[%emt 0:00:04]} 8. a4 {[%emt 0:00:24]} b4 {[%emt 0:00:04]} 9. d4 {[%emt 0:01:29]} d6 {[%emt 0:00:06]} 10. dxe5 {[%emt 0:00:06]} Nxe5 {[%emt 0:00:04]} 11. Nxe5 {[%emt 0:01:51] C88: Closed Ruy Lopez: Anti-Marshall Systems.} dxe5 {[%emt 0:00:04] The position is equal.} 12. Qe2 {[%emt 0:00:05]} Bc5 {[%emt 0:01:13]} 13. Nd2 {[%emt 0:02:23][%cal Bb1d2,Bd2c4,Bc4e3,Be3f1,Bf1e3,Be3d5][%mdl 32]} a5 {[%emt 0:00:40]} 14. Nc4 {[%emt 0:00:30]} Ng4 {[%emt 0:01:52]} 15. Ne3 $1 {[%emt 0:00:54]} Qh4 {[%emt 0:02:15]} 16. h3 {[%emt 0:00:23]} Nh6 {[%emt 0:00:08][%cal Oa8a6] [#]} 17. Nf1 $146 {[%emt 0:00:16]} ({Predecessor:} 17. Rd1 Ra6 18. Rd5 Bd4 19. c3 bxc3 20. bxc3 Bxc3 21. Bb2 Bxb2 22. Qxb2 Bxh3 23. Qxe5 Be6 24. Rb5 Rd6 25. Rc1 {½-½ Kasabasic,D (2387)-Kahl,F (2416) ST-2020-0-00136}) 17... Ng4 $1 {[%emt 0:02:40][%cal Rc5f2]} 18. Ne3 {[%emt 0:02:18]} (18. hxg4 $2 Bxg4 $19) 18... Nh6 {[%emt 0:00:04][%cal Oa8a6]} 19. Nd5 {[%emt 0:01:19]} Ra6 $1 {[%emt 0:01:37] [#] ...Rg6 is the strong threat.} 20. Be3 {[%emt 0:05:29]} (20. Nxc7 $2 Rg6 21. Be3 Bxh3 $19) 20... Bxe3 {[%emt 0:01:10]} 21. Qxe3 {[%emt 0:00:08] Hoping for Qc5.} Rg6 {[%emt 0:00:20] aiming for ...c6.} 22. Qc5 {[%emt 0:06:42]} (22. Nxc7 Bxh3 23. g3 Qh5 $17) 22... Re8 {[%emt 0:00:19] Wards off Ne7+} 23. Rad1 {[%emt 0:00:49][%cal Od5e7] And now Ne7+! would win.} Kh8 $1 {[%emt 0:00:26]} (23... Qxh3 $2 24. Ne7+ (24. Qxa5 $2 Qxg2#) 24... Kh8 25. Nxg6+ hxg6 26. gxh3 $18) 24. Kf1 {[%emt 0:16:32]} Rxg2 $1 {[%emt 0:36:20][%mdl 64] [#] Decoy} 25. Kxg2 {[%emt 0:01:24]} Qxh3+ {[%emt 0:01:46]} 26. Kg1 {[%emt 0:00:07]} Qg4+ {[%emt 0:00:03]} 27. Kh2 {[%emt 0:14:30]} ({Not} 27. Kf1 $2 Qf3 28. Re3 (28. Qxa5 $2 Bh3+ 29. Kg1 Qg2#) 28... Qxd1+ 29. Kg2 Qg4+ 30. Kf1 Qh4 $19) 27... Qh5+ {[%emt 0:07:12]} 28. Kg1 {[%emt 0:00:20] Rd3 would be deadly.} Qg4+ {[%emt 0:00:04]} 29. Kh2 {[%emt 0:00:26] Black must now prevent Rd3.} ({Don't go for} 29. Kf1 $2 Qf3 30. Re3 (30. Qxa5 $2 {is a self mate.} Bh3+ 31. Kg1 Qg2#) 30... Qxd1+ 31. Kg2 Qg4+ 32. Kf1 Qh5 $19) 29... Qh5+ {[%emt 0:00:06]} 30. Kg1 {[%emt 0:00:05] Threatens to win with Rd3.} Qg4+ {[%emt 0:00:04] A rather calm draw.   Weighted Error Value: White=0.01 (flawless) /Black=0.00 (flawless)} 1/2-1/2

[Event "ETCC Open 2023"]
[Site "Budva"]
[Date "2023.11.11"]
[Round "1.18"]
[White "Svane, Rasmus"]
[Black "Hillarp Persson, Tiger"]
[Result "1/2-1/2"]
[ECO "D45"]
[WhiteElo "2647"]
[BlackElo "2502"]
[Annotator "TA"]
[PlyCount "123"]
[EventDate "2023.11.10"]
[EventType "team-tourn"]
[EventCountry "MNE"]
[SourceTitle "playchess.com"]
[Source "ChessBase"]
[SourceQuality "1"]
[WhiteTeam "Germany"]
[BlackTeam "Sweden"]
[WhiteTeamCountry "GER"]
[BlackTeamCountry "SWE"]
[TimeControl "40/5400+30:1800+30"]

{[%evp 15,123,13,25,20,13,16,24,9,47,50,59,56,56,52,50,61,79,56,58,40,76,47,81,72,80,79,93,52,63,64,49,36,51,23,22,23,22,20,25,9,25,10,10,13,29,11,10,4,4,0,0,0,6,6,6,6,6,0,0,0,0,0,8,8,13,0,0,0,0,0,0,0,0,0,0,0,0,0,0,0,0,0,0,0,0,0,0,0,0,0,0,0,0,0,0,0,0,0,0,0,0,0,0,0,0,0,0,0,0,0]} 1. d4 {[%emt 0:00:04]} Nf6 {[%emt 0:00:08]} 2. c4 {[%emt 0:00:09]} e6 {[%emt 0:00:06]} 3. Nf3 {[%emt 0:00:27]} d5 {[%emt 0:00:22]} 4. Nc3 {[%emt 0:00:09]} c6 {[%emt 0:00:27]} 5. e3 {[%emt 0:02:45]} a6 {[%emt 0:00:46]} 6. b3 {[%emt 0:02:10]} Bb4 {[%emt 0:00:50]} 7. Bd2 {[%emt 0:00:09]} O-O {[%emt 0:00:48]} 8. Bd3 {[%emt 0:01:01]} Nbd7 {[%emt 0:02:22]} 9. Qc2 {[%emt 0:03:36] D45: Semi-Slav: 5 e3.} Qe7 {[%emt 0:17:39]} 10. O-O {[%emt 0:02:18]} h6 {[%emt 0:05:14] is the legacy move (10...e5).} (10... e5 {looks sharper.} 11. Nxe5 Nxe5 12. dxe5 Qxe5 13. Nxd5 Nxd5 14. cxd5 Bxd2 15. Qxd2 Qxd5 16. Qc3 Qd6) 11. Rad1 {[%emt 0:08:01] [#] White has an edge.} e5 $5 $146 {[%emt 0:12:25][%mdl 8] An interesting novelty.} ({Predecessor:} 11... Re8 12. h3 dxc4 13. bxc4 e5 14. Ne4 Nxe4 15. Bxb4 Qxb4 16. Bxe4 exd4 17. exd4 Nf6 {½-½ Akopian,V (2693)-Gurevich,M (2656) FRA-chT Poule Haute 2004 (10)}) 12. dxe5 {[%emt 0:07:43]} Nxe5 {[%emt 0:00:19]} 13. Nxe5 {[%emt 0:00:16]} Qxe5 {[%emt 0:00:13] [#]} 14. Nxd5 $1 {[%emt 0:10:19]} Nxd5 {[%emt 0:05:13]} 15. cxd5 {[%emt 0:00:09]} Bxd2 $1 {[%emt 0:00:08]} 16. Rxd2 {[%emt 0:13:25]} cxd5 {[%emt 0:00:41]} 17. Qc5 {[%emt 0:04:35][%cal Od3h7] Strongly threatening Bh7+!} Be6 {[%emt 0:02:01]} 18. Qb6 {[%emt 0:01:16]} (18. f4 $5 {[%cal Rf4e5]} Qf6 19. f5 $14) 18... Rfb8 {[%emt 0:18:28]} 19. Rfd1 {[%emt 0:04:01] White is more active.} a5 {[%emt 0:01:47]} 20. Be2 {[%emt 0:16:23]} a4 {[%emt 0:02:05]} 21. Bf3 {[%emt 0:08:04][%cal Rf3d5]} axb3 {[%emt 0:04:39]} 22. axb3 {[%emt 0:00:05]} Qc3 {[%emt 0:02:29]} 23. h3 {[%emt 0:01:50]} (23. Bxd5 $2 {too greedy.} Qxd2 24. Bf3 Qc3 $19) 23... Ra6 {[%emt 0:02:29]} 24. Qd4 {[%emt 0:03:21]} (24. Qb5 {simplifies} Ra5 25. Qd3 Qxd3 26. Rxd3 Rb5 27. Bxd5 Bxd5 28. Rxd5 Rxb3 29. Re5) 24... Qxb3 {[%emt 0:00:55]} 25. Qe5 {[%emt 0:01:01]} Rd8 {[%emt 0:08:12]} 26. Rb2 {[%emt 0:00:55]} Qc4 {[%emt 0:04:21]} (26... f6 $2 27. Qxe6+ (27. Rxb3 fxe5 28. Rxb7 d4 $11) 27... Rxe6 28. Rxb3 $18) 27. Rxb7 {[%emt 0:00:18]} Ra2 {[%emt 0:00:38]} 28. Rb2 {[%emt 0:01:59]} Rxb2 {[%emt 0:02:09]} 29. Qxb2 {[%emt 0:00:03]} Ra8 {[%emt 0:00:36]} 30. Qe5 {[%emt 0:01:47][%cal Rf3d5]} (30. Rd4 $5 {[%cal Rd4c4]} Qc5 31. g4 $14) 30... Qc2 {[%emt 0:01:15] The position is equal.} 31. Rf1 {[%emt 0:01:28]} Qd2 {[%emt 0:01:12]} 32. Bg4 {[%emt 0:01:09]} (32. g3 {feels hotter.} Ra2 33. Kg2 g6 34. g4) 32... Bxg4 {[%emt 0:00:55]} 33. hxg4 $11 {[%emt 0:00:02][%mdl 4096] Endgame KQR-KQR} Qd3 {[%emt 0:05:08]} 34. Rc1 {[%emt 0:01:52]} Qe4 {[%emt 0:00:00]} 35. Qf5 {[%emt 0:00:11]} (35. Qxe4 {simplifies} dxe4 36. Kh2 g6 37. Kg3) 35... g6 {[%emt 0:00:00]} 36. Qd7 {[%emt 0:00:51]} (36. Qxe4 {simplifies} dxe4 37. Rc4 Re8 38. Kh2) 36... Qe6 {[%emt 0:00:29]} 37. Qxe6 {[%emt 0:04:04]} fxe6 {[%emt 0:00:07] KR-KR} 38. Rc7 {[%emt 0:00:03]} Rf8 {[%emt 0:01:10]} 39. Re7 {[%emt 0:01:09]} Rf6 {[%emt 0:00:07]} 40. f3 {[%emt 0:00:39]} Kf8 {[%emt 0:00:21]} 41. Rh7 {[%emt 0:30:16]} g5 {[%emt 0:30:08]} 42. Kf2 {[%emt 0:00:33]} Kg8 {[%emt 0:00:23]} 43. Rd7 {[%emt 0:00:00]} Rf7 {[%emt 0:00:00]} 44. Rd6 {[%emt 0:00:00]} Re7 {[%emt 0:00:00]} 45. g3 {[%emt 0:00:00]} Kf7 {[%emt 0:00:00]} 46. f4 {[%emt 0:00:00]} Kf6 {[%emt 0:00:00]} 47. Kf3 {[%emt 0:00:00]} Ra7 {[%emt 0:00:00]} 48. Rb6 {[%emt 0:00:00]} Rg7 {[%emt 0:00:00]} 49. Ra6 {[%emt 0:00:00]} Rg8 {[%emt 0:00:00]} 50. Ra7 {[%emt 0:00:00]} Rb8 {[%emt 0:00:00]} 51. Ra6 {[%emt 0:00:00]} Rg8 {[%emt 0:00:00]} 52. Rc6 {[%emt 0:00:00]} (52. f5 $5 Re8 $8 53. Kf2 $11) 52... Ra8 {[%emt 0:00:00]} 53. Rb6 {[%emt 0:00:00]} Rg8 {[%emt 0:00:00]} 54. f5 {[%emt 0:00:00]} Re8 {[%emt 0:00:00]} 55. e4 {[%emt 0:00:00]} dxe4+ {[%emt 0:00:00]} ({Much less strong is} 55... d4 56. Ke2 Kf7 57. Kd3 $14) 56. Kxe4 {[%emt 0:00:00]} Re7 {[%emt 0:00:00]} 57. Rd6 {[%emt 0:00:00]} Re8 {[%emt 0:00:00]} 58. Rc6 {[%emt 0:00:03]} Re7 {[%emt 0:00:00]} 59. Kd4 {[%emt 0:02:01]} Re8 {[%emt 0:00:00]} 60. Rb6 {[%emt 0:00:52]} Re7 {[%emt 0:01:19]} 61. Ke4 {[%emt 0:01:35]} Re8 {[%emt 0:00:07]} 62. Rc6 {[%emt 0:00:50] Weighted Error Value: White=0.06 (flawless) /Black=0.05 (flawless)} 1/2-1/2

[Event "ETCC Open 2023"]
[Site "Budva"]
[Date "2023.11.11"]
[Round "1.19"]
[White "Sorensen, Hampus"]
[Black "Bluebaum, Matthias"]
[Result "1/2-1/2"]
[ECO "D11"]
[WhiteElo "2479"]
[BlackElo "2670"]
[Annotator "TA"]
[PlyCount "114"]
[EventDate "2023.11.10"]
[EventType "team-tourn"]
[EventCountry "MNE"]
[SourceTitle "playchess.com"]
[Source "ChessBase"]
[SourceQuality "1"]
[WhiteTeam "Sweden"]
[BlackTeam "Germany"]
[WhiteTeamCountry "SWE"]
[BlackTeamCountry "GER"]
[TimeControl "40/5400+30:1800+30"]

{[%evp 9,114,3,1,8,12,6,0,10,14,8,2,7,1,-18,-20,-23,0,-12,0,-2,-10,-8,0,0,0,0,5,-21,-11,-18,-17,-18,-15,-21,-10,-12,-11,-13,-18,-16,0,-29,-28,-29,-29,-47,-47,-47,-48,-56,-29,-29,-29,-29,-29,-66,-32,-45,-45,-43,-22,-41,-10,-11,-10,-12,0,-15,0,0,0,0,0,0,0,0,0,0,0,0,0,0,0,0,0,0,0,0,0,0,5,28,525,460,462,417,348,134,269,263,262,253,163,0,87,0,137]} 1. d4 {[%emt 0:00:31]} d5 {[%emt 0:00:08]} 2. c4 {[%emt 0:00:07]} c6 {[%emt 0:00:05]} 3. Nf3 {[%emt 0:03:30]} Nf6 {[%emt 0:00:12]} 4. Nbd2 {[%emt 0:01:51]} Bf5 {[%emt 0:00:30]} 5. Nh4 {[%emt 0:00:11]} Be6 {[%emt 0:00:49]} 6. e3 {[%emt 0:03:14] D11: Slav Defence: 3 Nf3 sidelines and 3...Nf6 4 e3 Bg4.} g5 {[%emt 0:01:03]} 7. Nhf3 {[%emt 0:00:10]} g4 {[%emt 0:00:06]} 8. Ne5 {[%emt 0:07:36]} h5 {[%emt 0:00:06]} 9. b3 {[%emt 0:10:28]} Nbd7 {[%emt 0:04:07]} 10. Bb2 {[%emt 0:01:11] [#]} Bg7 $146 {[%emt 0:04:49]} ({Predecessor:} 10... Nxe5 11. dxe5 Ne4 12. Nxe4 dxe4 13. Qc2 Bf5 14. g3 e6 15. Bc3 h4 16. Rd1 Qg5 {½-½ Koelewijn,A (2246)-Pekin,T (2238) EU-ch 2017 pr02 email}) 11. Nxd7 {[%emt 0:06:40]} Qxd7 {[%emt 0:00:46]} 12. Bd3 {[%emt 0:00:17]} Bf5 {[%emt 0:07:21]} 13. Qc2 {[%emt 0:00:56]} Bxd3 {[%emt 0:01:49]} 14. Qxd3 {[%emt 0:00:02]} O-O-O {[%emt 0:09:26]} 15. O-O-O {[%emt 0:07:13]} Qe6 {[%emt 0:01:04]} 16. Kb1 {[%emt 0:04:19]} Kb8 {[%emt 0:01:14]} 17. Rhe1 {[%emt 0:05:49]} Rd7 {[%emt 0:08:16]} 18. cxd5 {[%emt 0:09:38]} cxd5 {[%emt 0:00:57]} 19. Ba3 {[%emt 0:00:42]} Rc8 {[%emt 0:04:17]} 20. Rc1 {[%emt 0:00:27]} Rdc7 {[%emt 0:01:01]} 21. Rxc7 {[%emt 0:03:31]} Rxc7 {[%emt 0:00:05]} 22. Rc1 {[%emt 0:00:40]} Rxc1+ {[%emt 0:01:22]} 23. Kxc1 {[%emt 0:00:14]} h4 {[%emt 0:01:42]} 24. Kd1 {[%emt 0:16:50]} Bh6 {[%emt 0:02:55][%cal Og4g3]} 25. g3 {[%emt 0:03:55]} Bg5 {[%emt 0:05:13]} 26. Qb5 {[%emt 0:01:37]} b6 {[%emt 0:08:56]} 27. Ke1 {[%emt 0:02:59]} Kb7 {[%emt 0:01:35]} 28. Qd3 {[%emt 0:02:01]} a6 {[%emt 0:01:07]} 29. Bb4 {[%emt 0:00:20]} Nh5 {[%emt 0:05:52]} 30. Kd1 {[%emt 0:02:12]} f5 {[%emt 0:00:46]} 31. a4 {[%emt 0:01:06]} Nf6 {[%emt 0:06:56]} 32. Ba3 {[%emt 0:00:03]} Qd7 {[%emt 0:00:46]} (32... Ne4 {with more complications.} 33. Ke2 Nxd2 34. Kxd2 Qe4) 33. Qc2 {[%emt 0:00:42]} e6 {[%emt 0:00:53]} 34. Qc3 {[%emt 0:00:41]} Ne8 {[%emt 0:01:03]} (34... h3 {feels hotter.} 35. a5 Qc6 36. Qb4 Nh7) 35. Qb4 {[%emt 0:00:44]} hxg3 {[%emt 0:03:16]} 36. hxg3 {[%emt 0:00:07]} Bd8 {[%emt 0:00:06]} 37. Qf8 {[%emt 0:00:43]} Bc7 {[%emt 0:00:19]} 38. Qh8 {[%emt 0:01:23]} b5 {[%emt 0:05:00]} 39. axb5 {[%emt 0:00:19]} Qxb5 {[%emt 0:00:02]} 40. Qh7 {[%emt 0:03:08]} Nf6 {[%emt 0:03:01]} (40... Qd3 $2 41. Qe7 Qb5 42. Qxe6 $18) 41. Qe7 {[%emt 0:08:56]} (41. Qf7 $5 Ne4 $8 42. Nxe4 Qxb3+ 43. Ke1 dxe4 44. Bd6 Qb1+ 45. Ke2 Qb5+ 46. Ke1 Qb1+ 47. Ke2 Qc2+ 48. Kf1 $11) 41... Ne4 {[%emt 0:00:05]} 42. Nxe4 {[%emt 0:00:36] Nd6+ would kill now.} Qxb3+ {[%emt 0:02:22]} 43. Kd2 {[%emt 0:03:56] White wants to mate with Nc5+.} fxe4 $11 {[%emt 0:03:34][%mdl 4096] Endgame KQB-KQB} 44. Bd6 {[%emt 0:02:35]} Qd3+ {[%emt 0:00:13]} 45. Ke1 {[%emt 0:00:01]} Qc3+ {[%emt 0:00:06]} 46. Kf1 {[%emt 0:03:33]} a5 {[%emt 0:01:31]} 47. Kg2 {[%emt 0:00:35]} Qc6 {[%emt 0:03:39]} 48. Bxc7 {[%emt 0:05:01]} Qxc7 {[%emt 0:03:03]} 49. Qxe6 {[%emt 0:00:01] KQ-KQ} a4 {[%emt 0:09:18]} 50. Qxd5+ {[%emt 0:00:39]} Qc6 $2 {[%emt 0:00:28][%mdl 8192]} (50... Kb6 $1 $11) 51. Qa5 {[%emt 0:02:46]} Qa6 {[%emt 0:00:46]} 52. Qb4+ {[%emt 0:00:49]} Kc6 {[%emt 0:01:49]} 53. Qc5+ {[%emt 0:00:19]} Kd7 {[%emt 0:00:45]} 54. Qf5+ $1 {[%emt 0:01:02]} Qe6 {[%emt 0:02:11] [#]} 55. Qb5+ {[%emt 0:00:27]} Qc6 {[%emt 0:00:01] [#]} 56. Qf5+ {[%emt 0:00:22]} (56. Qh5 $1 $18) 56... Qe6 $16 {[%emt 0:00:14]} 57. Qb5+ {[%emt 0:00:06]} ({Better is} 57. Qh7+ Kd6 58. Qh5 (58. Qb7 Qc4 $16)) 57... Qc6 {[%emt 0:00:03] Weighted Error Value: White=0.11 (very precise) /Black=0.17 (very precise)} 1/2-1/2

[Event "ETCC Open 2023"]
[Site "Budva"]
[Date "2023.11.11"]
[Round "1.20"]
[White "Donchenko, Alexander"]
[Black "Kucuksari, Kaan"]
[Result "1-0"]
[ECO "E97"]
[WhiteElo "2664"]
[BlackElo "2474"]
[Annotator "TA"]
[PlyCount "165"]
[EventDate "2023.11.10"]
[EventType "team-tourn"]
[EventCountry "MNE"]
[SourceTitle "playchess.com"]
[Source "ChessBase"]
[SourceQuality "1"]
[WhiteTeam "Germany"]
[BlackTeam "Sweden"]
[WhiteTeamCountry "GER"]
[BlackTeamCountry "SWE"]
[TimeControl "40/5400+30:1800+30"]

{[%evp 20,165,50,28,45,47,48,37,74,48,57,26,31,14,23,35,20,20,16,22,80,88,79,60,130,125,122,130,129,135,120,115,131,106,105,120,129,105,101,100,109,102,104,102,110,110,102,104,162,162,162,150,133,94,94,94,108,108,115,114,146,146,146,118,118,118,118,118,114,111,99,58,110,73,75,70,107,86,125,110,112,90,109,82,97,82,152,146,154,154,152,154,152,154,148,151,163,163,163,163,163,163,184,163,247,186,271,268,273,267,259,180,237,218,557,524,475,460,422,276,262,260,421,402,452,452,766,406,420,400,810,872,858,847,825,800,736,650,654,610,925,769,614,500,1585,1530,941,934]} 1. d4 {[%emt 0:00:03]} Nf6 {[%emt 0:00:03]} 2. c4 {[%emt 0:00:13]} g6 {[%emt 0:00:03]} 3. Nc3 {[%emt 0:00:17]} Bg7 {[%emt 0:00:07]} 4. e4 {[%emt 0:00:16]} d6 {[%emt 0:00:06]} 5. Be2 {[%emt 0:00:23]} O-O {[%emt 0:00:07]} 6. Nf3 {[%emt 0:00:12]} e5 {[%emt 0:00:13]} 7. O-O {[%emt 0:00:16]} Nc6 {[%emt 0:00:05]} 8. d5 {[%emt 0:00:24]} Ne7 {[%emt 0:00:03]} 9. b4 {[%emt 0:00:17]} a5 {[%emt 0:00:06]} 10. bxa5 {[%emt 0:00:19]} Rxa5 {[%emt 0:00:05]} 11. a4 {[%emt 0:00:36]} Ra8 {[%emt 0:00:08] Recently 11...Ne8 got a lot of attention. E97: King's Indian: Classical Main Line (6...e5 7 0-0 Nc6): 8 Be3 and 8 d5 Ne7, not 9 Ne1.} 12. Nd2 {[%emt 0:10:46]} h6 {[%emt 0:00:09] [#]} 13. Re1 $146 {[%emt 0:12:22]} ({Predecessor:} 13. Ra3 Ne8 14. f3 b6 15. Qc2 f5 16. Nb3 Bd7 17. Qa2 Kh7 18. Be3 fxe4 19. fxe4 Rxf1+ 20. Bxf1 {½-½ Vaughan,J (2205)-Vlasov,A (2245) W-ch WS/M/785 email 2020}) 13... Kh8 {[%emt 0:12:52] White is slightly better.} 14. Ba3 {[%emt 0:08:13]} c5 {[%emt 0:12:08]} 15. dxc6 {[%emt 0:09:58]} bxc6 {[%emt 0:00:13]} 16. Nf1 {[%emt 0:00:29]} c5 {[%emt 0:03:23]} 17. Nb5 {[%emt 0:00:33]} Ra6 {[%emt 0:01:57]} (17... Nxe4 18. Bf3 $16) 18. Qd3 {[%emt 0:07:10]} Bb7 {[%emt 0:16:07]} 19. Bf3 $36 {[%emt 0:03:16][%mdl 2048] Strongly threatening Red1. White has the initiative.} Nf5 {[%emt 0:10:12]} 20. Rab1 $16 {[%emt 0:11:07]} Nh4 {[%emt 0:06:10]} 21. Bd1 {[%emt 0:01:51]} Nxe4 {[%emt 0:02:47]} ({Better is} 21... Nh5 $14 22. Bxh5 (22. g3 f5 $14) 22... gxh5) 22. Rxe4 {[%emt 0:00:23]} Nxg2 {[%emt 0:00:14]} 23. Kxg2 {[%emt 0:01:10][%cal Og2g1]} f5 {[%emt 0:01:57] [#]} (23... Bxe4+ $2 24. Qxe4 f5 25. Qd5 $18) 24. Nc3 {[%emt 0:06:25][%cal Ob1b7,Bb5c3,Bc3e4,Be4d6][%mdl 32]} fxe4 {[%emt 0:01:18]} 25. Nxe4 {[%emt 0:02:15]} ({Weaker is} 25. Qg3 Ra7 $11) 25... Bc6 {[%emt 0:03:42]} 26. f3 {[%emt 0:04:11]} Bxa4 {[%emt 0:02:08]} 27. Bxa4 {[%emt 0:01:47]} Rxa4 {[%emt 0:00:02]} 28. Nxd6 {[%emt 0:01:12][%cal Od6f7]} Kh7 {[%emt 0:18:08][%cal Oe5e4] Black is weak on the light squares} 29. Rb3 $1 {[%emt 0:02:12] White is more active.} e4 {[%emt 0:02:02]} 30. Nxe4 {[%emt 0:00:39]} (30. Qxe4 $2 {too greedy.} Qxd6 31. h4 h5 $19) 30... Qxd3 {[%emt 0:02:28]} 31. Rxd3 {[%emt 0:00:03]} Rxc4 {[%emt 0:01:05]} 32. Bxc5 {[%emt 0:00:24]} Rc2+ {[%emt 0:02:11]} 33. Bf2 {[%emt 0:02:09]} Rf7 {[%emt 0:01:10]} (33... Rcc8 $16 {was called for.} 34. Ne3 Rcd8) 34. Ne3 $18 {[%emt 0:00:23]} Ra2 {[%emt 0:01:04]} 35. Ng4 {[%emt 0:03:45]} Ra8 {[%emt 0:01:43]} 36. Bg3 {[%emt 0:03:59]} Ra2+ {[%emt 0:00:09]} 37. Kh3 {[%emt 0:01:06]} Ra5 {[%emt 0:01:12]} 38. Be1 {[%emt 0:01:52]} Ra1 {[%emt 0:00:57]} 39. Bf2 {[%emt 0:01:53]} Ra2 {[%emt 0:00:20]} 40. Kg3 $1 {[%emt 0:00:27]} Ra5 {[%emt 0:00:30]} 41. Be1 {[%emt 0:31:58]} Ra1 {[%emt 0:30:16]} 42. Bd2 {[%emt 0:03:15]} Rg1+ {[%emt 0:00:00]} 43. Kh3 {[%emt 0:00:00]} Rf5 {[%emt 0:00:00][%cal Rf5h5]} 44. Ng3 {[%emt 0:00:00] Prevents Rh5+.} Rf7 {[%emt 0:00:00]} 45. Ne2 {[%emt 0:00:00]} Rd1 {[%emt 0:00:00]} (45... Rb1 $14) 46. Nf2 {[%emt 0:00:00]} Ra1 {[%emt 0:00:00]} 47. Ne4 {[%emt 0:00:00]} Ra2 {[%emt 0:00:00]} 48. Kg2 {[%emt 0:00:00]} Ra8 {[%emt 0:00:00]} 49. Nf4 {[%emt 0:00:00]} Be5 {[%emt 0:00:00]} 50. Nd5 {[%emt 0:00:00]} Ra4 {[%emt 0:00:00]} 51. Be3 {[%emt 0:00:00]} Ra2+ {[%emt 0:00:00]} 52. Bf2 {[%emt 0:00:00]} Kg7 {[%emt 0:00:00] [#]} (52... g5 $142) 53. Nb4 $1 $16 {[%emt 0:00:00]} Ra8 {[%emt 0:00:00]} 54. Nc6 {[%emt 0:00:00]} Ba1 {[%emt 0:05:53]} 55. Nd8 {[%emt 0:00:00]} Rf5 {[%emt 0:00:32]} 56. Rd7+ {[%emt 0:00:00]} Kg8 {[%emt 0:00:07]} 57. Rd6 {[%emt 0:00:00]} Be5 {[%emt 0:00:59]} 58. Rxg6+ {[%emt 0:00:00]} Kh7 {[%emt 0:00:18] [#]} 59. Nc6 $1 {[%emt 0:00:00]} Kxg6 {[%emt 0:01:58]} 60. Ne7+ {[%emt 0:00:00][%mdl 64] Deflection, Double Attack. A dynamic duo of knights.} Kh7 {[%emt 0:00:21]} 61. Nxf5 {[%emt 0:00:00]} Rf8 {[%emt 0:00:21]} (61... Ra2 $142 62. Kh3 Ra5) 62. Nh4 {[%emt 0:00:05]} Ra8 {[%emt 0:00:20]} (62... Bc7 $142 63. Bg3 Bd8) 63. Bg3 $18 {[%emt 0:00:24]} Bb2 {[%emt 0:00:26]} 64. Kh3 {[%emt 0:00:27]} Ra5 {[%emt 0:01:03]} 65. Bf4 {[%emt 0:00:21]} Bg7 {[%emt 0:00:12]} (65... Kg7 {might work better.} 66. Be3 Ba1) 66. Kg4 {[%emt 0:00:22]} Rd5 $2 {[%emt 0:00:27]} (66... h5+ {is a better chance.} 67. Kg3 Rd5) 67. Ng3 {[%emt 0:00:44]} Bf8 {[%emt 0:00:16]} 68. Be3 {[%emt 0:00:53]} Re5 {[%emt 0:00:27]} 69. Ng2 {[%emt 0:01:38] h4 would be deadly.} Rb5 {[%emt 0:00:28]} 70. h4 {[%emt 0:00:45][%cal Bh2h4,Bh4h5][%mdl 32]} Rb2 $2 {[%emt 0:00:28]} (70... Bd6 71. f4 Kg8) 71. Nf4 {[%emt 0:00:26]} Rb3 {[%emt 0:00:18]} 72. Nf5 {[%emt 0:00:27]} Ra3 {[%emt 0:00:14]} (72... Ba3 $142 73. h5 Rb5) 73. h5 {[%emt 0:00:24] Hoping for Ne6.} Ra4 {[%emt 0:00:14]} 74. Bd4 {[%emt 0:00:44] Dodges Bg7} Ra6 {[%emt 0:01:48]} (74... Rc4 $142 75. Ne6 Bb4) 75. Nd5 {[%emt 0:00:44] White is clearly winning.} Kg8 {[%emt 0:00:08]} 76. Nf6+ {[%emt 0:01:34]} Kf7 {[%emt 0:00:02]} 77. Nd7 {[%emt 0:00:07] Black must now prevent Nxf8.} Ba3 {[%emt 0:00:28]} 78. Ne5+ {[%emt 0:00:30]} Kg8 {[%emt 0:00:22]} 79. Be3 {[%emt 0:00:45]} Bf8 {[%emt 0:00:17]} 80. Ng6 {[%emt 0:00:33]} Ra4+ {[%emt 0:00:10]} 81. Bf4 {[%emt 0:00:18] Threatens to win with Nxf8.} Bg7 {[%emt 0:00:17] Repels Nxf8} (81... Ba3 $142 82. Nxh6+ Kh7) 82. Nge7+ {[%emt 0:00:23]} Kf7 {[%emt 0:00:24]} 83. Nxg7 {[%emt 0:00:06] Weighted Error Value: White=0.09 (flawless) /Black=0.13 (very precise)} 1-0